Cogmind - Beta 10.2 --- EXPLORER MODE // 2020.10.30 @ 22:14:05 // Halloween2020/ForbiddenLore Player: Zyalin Result: Destroyed by as-22367 with Assembled Focal Cannon Performance ------------- Evolutions (1) 500 Regions Visited (6) 1200 Robots Destroyed (51) 255 Value Destroyed (306) 306 Prototype IDs (3) 60 Alien Tech Used (0) 0 Bonus (1912) 1912 TOTAL SCORE: 4233 Bonus ------- Follower Combat Kills 110 Destroyed Z-Imprinter 1000 Triggered Deep Caves Wall 500 Exposed GOLEM Chamber 500 Friendly Fire -198 Cogmind --------- Core Integrity 0/400 Matter 83/300 Energy 99/100 System Corruption 5% Temperature Cool (6) Movement Core (50) Location -7/Deep Caves Parts ------- > --- POWER (1) -------- (None) > --- PROPULSION (3) --- (None) > --- UTILITY (3) ------ (None) > --- WEAPON (3) ------- (None) > --- INVENTORY (4) ---- Large Storage Unit Grenade Launcher Mini Grenade Launcher Heavy Missile Launcher Peak State ------------ > --- POWER ------------ Light Antimatter Reactor > --- PROPULSION ------- Hover Unit Hover Unit > --- UTILITY ---------- Improved Heat Sink Large Storage Unit Experimental Sensor Array > --- WEAPON ----------- Rocket Launcher Guided Missile Launcher > --- INVENTORY -------- Large Storage Unit Grenade Launcher Mini Grenade Launcher Missile Launcher Heavy Missile Launcher Precision Grenade Launcher [Rating: 32] Favorites ----------- Power Light Angular Momentum Engine Engine Light Angular Momentum Engine Reactor Light Antimatter Reactor Propulsion Aluminum Leg Leg Aluminum Leg Hover Unit Hover Unit Utility Large Storage Unit Device Improved Heat Sink Storage Large Storage Unit Protection Power Shielding Weapon Assault Rifle Energy Gun EM Pulse Gun Ballistic Gun Assault Rifle Launcher Precision Grenade Launcher Build | -11 -10 -10 -9 -9 -7 -7 ------- Run | Scr Mat Min Mat Min Zio Dee Slots Evolved 3 | . 1 . 2 . . . Power . | . . . . . . . Propulsion 1 | . . . 1 . . . Utility 1 | . 1 . . . . . Weapon 1 | . . . 1 . . . Parts Attached 23 | 7 1 . 1 2 4 8 Power 3 | 1 . . . 1 . 1 Engine 2 | 1 . . . 1 . . Core . | . . . . . . . Reactor 1 | . . . . . . 1 Propulsion 5 | 2 . . . . 1 2 Treads . | . . . . . . . Leg 3 | 2 . . . . 1 . Wheel . | . . . . . . . Hover 2 | . . . . . . 2 Flight . | . . . . . . . Utility 7 | 2 1 . 1 1 1 1 Device 2 | . . . . 1 . 1 Storage 2 | . 1 . 1 . . . Processor . | . . . . . . . Hackware . | . . . . . . . Protection 3 | 2 . . . . 1 . Artifact . | . . . . . . . Weapon 8 | 2 . . . . 2 4 Energy Gun 1 | 1 . . . . . . Energy Cannon . | . . . . . . . Ballistic Gun 2 | 1 . . . . 1 . Ballistic Cannon . | . . . . . . . Launcher 5 | . . . . . 1 4 Special Weapon . | . . . . . . . Impact Weapon . | . . . . . . . Slashing Weapon . | . . . . . . . Piercing Weapon . | . . . . . . . Special Melee Weapon . | . . . . . . . Unidentified Prototypes 3 | . . . . . 1 2 Parts Lost 16 | . . . 2 . . 14 Power 3 | . . . 1 . . 2 Propulsion 5 | . . . . . . 5 Utility 4 | . . . 1 . . 3 Weapon 4 | . . . . . . 4 Highest Loss Streak 8 | . . . 2 . . 8 Average Slot Usage (%) 90 | . 94 100 77 70 90 84 Engine 8 | . 12 12 8 4 10 3 Reactor 1 | . . . . . . 6 Leg 20 | . 25 25 20 20 22 8 Hover 2 | . . . . . . 12 Device 6 | . . . . 5 10 15 Storage 10 | . 6 12 10 10 10 9 Protection 14 | . 25 25 18 10 10 3 Energy Gun 9 | . 12 12 10 10 10 1 Ballistic Gun 11 | . 12 12 10 10 14 5 Launcher 4 | . . . . . 3 17 Naked Turns 3 | . . . . . . 3 Heaviest Build 48 | 11 19 19 27 31 46 48 Greatest Support 37 | 20 20 20 20 20 37 37 Greatest Overweight (x) 3 | 1 . . 1 1 2 3 Average Overweight (x) . | . . . . 1 1 2 Largest Inventory Capacity 10 | 4 8 8 10 10 10 10 Average Capacity 9 | 4 6 8 9 10 10 9 Most Carried 10 | . 1 3 5 5 10 10 Average Carried 5 | . . 1 4 5 7 7 Final Capacity 10 | 4 8 8 10 10 10 4 Final Carried 10 | . 1 3 5 5 10 4 Class Distribution -------------------- 85% | Hacker-Mutant 14% | Hacker-Tank Dominant Class ---------------- Hacker-Mutant | -10/Materials Hacker-Mutant | -10/Mines Hacker-Mutant | -9/Materials Hacker-Mutant | -9/Mines Hacker-Mutant | -7/Zion Hacker-Mutant | -7/Deep Caves Resources | -11 -10 -10 -9 -9 -7 -7 ----------- Run | Scr Mat Min Mat Min Zio Dee Matter Collected 463 | 167 . 141 . 64 30 61 Remotely . | . . . . . . . Salvage Created 845 | . 89 281 . 202 . 273 Parts 53 | . 13 17 . 11 . 12 Haulers Intercepted 1 | . 1 . . . . . Recyclers Shooed . | . . . . . . . Parts Field Recycled . | . . . . . . . Retrieved Matter . | . . . . . . . Parts Self-Destructed . | . . . . . . . Prevented . | . . . . . . . Kills | -11 -10 -10 -9 -9 -7 -7 ------- Run | Scr Mat Min Mat Min Zio Dee Combat Hostiles Destroyed 39 | . 2 1 . . . 36 Guns 2 | . 1 1 . . . . AOE 37 | . 1 . . . . 36 Classes Destroyed 10 | . 3 4 . . . 3 Worker 2 | . . 1 . 1 . . Tunneler 2 | . . 1 . 1 . . Hauler 1 | . 1 . . . . . Recycler 3 | . . 2 . 1 . . Watcher 1 | . 1 . . . . . Swarmer 2 | . 2 . . . . . Grunt 1 | . . 1 . . . . Z-Light 2 | . . . . . . 2 Assembler 2 | . . . . . . 2 Assembled 34 | . . . . . . 34 Thug 1 | . . . . 1 . . Best Kill Streak 34 | . 4 2 . 2 . 34 Combat Bots Only 32 | . 2 1 . . . 32 Max Kills in Single Turn 10 | . 3 1 . 1 . 10 Gunslinging . | . . . . . . . Exploded 10 | . 1 . . . . 10 Melee . | . . . . . . . Uniques/NPCs Destroyed 1 | . . . . . . 1 Z-Imprinter (-7/Deep Caves) Combat | -11 -10 -10 -9 -9 -7 -7 -------- Run | Scr Mat Min Mat Min Zio Dee Damage Taken 1657 | . 26 55 307 2 . 1267 Core 431 | . . 17 46 . . 368 Absorbed by Shields . | . . . . . . . Core Remaining (%) 96 | 100 . 93 . . . . Volleys Fired 46 | . 6 9 4 8 . 19 Largest 2 | . 2 2 2 2 . 2 Hottest 72 | . 60 60 60 60 . 72 Shots Fired 74 | . 12 18 8 16 . 20 Gun 54 | . 12 18 8 16 . . Cannon . | . . . . . . . Launcher 20 | . . . . . . 20 Special . | . . . . . . . Kinetic 27 | . 6 9 4 8 . . Thermal . | . . . . . . . Explosive 20 | . . . . . . 20 Electromagnetic 27 | . 6 9 4 8 . . Robot Hit Streak 25 | . 5 19 25 10 . 14 Robot Miss Streak 1 | . 1 . 1 1 . 1 Penetration Max . | . . . . . . . Secondary Targets 2 | . 1 1 . . . . Max Gunslinging Chain 1 | . 1 1 . . . . Shots Hit Robots 51 | . 10 15 7 13 . 6 Core Hits 105 | . 5 10 . 8 . 82 Critical Hits 1 | . . . 1 . . . Critical Kills . | . . . . . . . Critical Parts Destroyed 1 | . . . 1 . . . Melee Attacks . | . . . . . . . Impact . | . . . . . . . Slashing . | . . . . . . . Piercing . | . . . . . . . Sneak Attacks . | . . . . . . . Combat Hostiles . | . . . . . . . Follow-up Attacks . | . . . . . . . Damage Inflicted 4003 | . 200 167 84 177 . 3375 Guns 564 | . 140 167 84 173 . . Cannons . | . . . . . . . Explosions 3435 | . 60 . . . . 3375 Melee . | . . . . . . . Ramming 4 | . . . . 4 . . Kinetic 294 | . 74 85 41 94 . . Thermal 60 | . 60 . . . . . Explosive 3375 | . . . . . . 3375 Electromagnetic 270 | . 66 82 43 79 . . Impact . | . . . . . . . Slashing . | . . . . . . . Piercing . | . . . . . . . Highest Corruption 5 | . 1 1 . . . 5 Average Corruption 1 | . 1 1 . . . 5 Corruption Purged . | . . . . . . . Effects 4 | . 2 2 . . . . Message Errors 3 | . 2 1 . . . . Data Loss (minor) 1 | . . 1 . . . . Overload Shots . | . . . . . . . Overflow Damage 119 | . . . . . . 119 Projectiles . | . . . . . . . Explosions 119 | . . . . . . 119 Melee . | . . . . . . . Knockbacks . | . . . . . . . Impact . | . . . . . . . Kinetic . | . . . . . . . Secondary . | . . . . . . . Self-Inflicted Damage 84 | . 19 . . 2 . 63 Shots 3 | . 1 . . . . 2 Rammed 2 | . . . 1 1 . . Targets Rammed 3 | . . 1 1 1 . . Kicked 1 | . . 1 . . . . Crushed . | . . . . . . . Highest Temperature 66 | . 33 66 18 . . 20 Average Temperature 15 | . 14 18 12 . . 7 Received Heat Transfer 385 | . . 48 93 . . 244 Siege Activations . | . . . . . . . Robots Corrupted . | . . . . . . . Combat Hostiles . | . . . . . . . Parts Fried 1 | . . . . 1 . . Impact Corruptions . | . . . . . . . Robots Melted . | . . . . . . . Combat Hostiles . | . . . . . . . Parts Melted . | . . . . . . . Heat Transferred 50 | . 50 . . . . . Parts Sabotaged . | . . . . . . . Parts Stolen . | . . . . . . . Parts Stripped . | . . . . . . . Power Chain Reactions 1 | . 1 . . . . . Missiles Intercepted . | . . . . . . . Alert | -11 -10 -10 -9 -9 -7 -7 ------- Run | Scr Mat Min Mat Min Zio Dee Peak Influence 107 | . 64 55 107 38 . . Initial 23 | . . 17 14 23 . . Average 18 | . 15 12 49 29 . . Maximum Alert Level . | . . . . . . . Low Security (%) 100 | 100 100 100 100 100 . . Level 1 . | . . . . . . . Level 2 . | . . . . . . . Level 3 . | . . . . . . . Level 4 . | . . . . . . . Level 5 . | . . . . . . . High Security . | . . . . . . . Max Security . | . . . . . . . Squads Dispatched 3 | . . . 3 . . . Investigation 1 | . . . 1 . . . Extermination . | . . . . . . . Reinforcement 2 | . . . 2 . . . Assault . | . . . . . . . Garrison . | . . . . . . . Intercept . | . . . . . . . Construction Impeded . | . . . . . . . Haulers Reinforced . | . . . . . . . Stealth | -11 -10 -10 -9 -9 -7 -7 --------- Run | Scr Mat Min Mat Min Zio Dee Distress Signals 3 | . 1 . 2 . . . Communications Jammed . | . . . . . . . Distress Signals . | . . . . . . . Times Spotted 61 | . 3 2 13 . 1 42 Peak Tracking Total 37 | . 2 2 7 . 1 37 Tactical Retreats 1 | . . . . . . 1 Traps | -11 -10 -10 -9 -9 -7 -7 ------- Run | Scr Mat Min Mat Min Zio Dee Traps Triggered 1 | . 1 . . . . . Indirectly . | . . . . . . . Trap Hack Attempts . | . . . . . . . Triggered . | . . . . . . . Disarmed . | . . . . . . . Reprogrammed . | . . . . . . . Reused . | . . . . . . . Traps Extracted . | . . . . . . . Installed . | . . . . . . . Triggered . | . . . . . . . Machines | -11 -10 -10 -9 -9 -7 -7 ---------- Run | Scr Mat Min Mat Min Zio Dee Machines Disabled 6 | . . 1 1 . . 4 Max in Single Turn 1 | . . . . . . 1 Machines Sabotaged . | . . . . . . . Garrisons Compromised . | . . . . . . . Overloaded Fab Kills . | . . . . . . . Fab Network Shutdowns . | . . . . . . . Hacking | -11 -10 -10 -9 -9 -7 -7 --------- Run | Scr Mat Min Mat Min Zio Dee Machines Accessed 4 | . . 1 3 . . . Terminals 4 | . . 1 3 . . . Fabricators . | . . . . . . . Repair Stations . | . . . . . . . Recycling Units . | . . . . . . . Scanalyzers . | . . . . . . . Garrison Access . | . . . . . . . Total Hacks 8 | . . 2 6 . . . Successful 3 | . . 2 1 . . . Failed 5 | . . . 5 . . . Catastrophic . | . . . . . . . Database Lockouts . | . . . . . . . Manual 12 | . . . 6 . 6 . Terminals 8 | . . 2 6 . . . Fabricators . | . . . . . . . Repair Stations . | . . . . . . . Recycling Units . | . . . . . . . Scanalyzers . | . . . . . . . Garrison Access . | . . . . . . . Terminal Hacks 3 | . . 2 1 . . . Record 1 | . . 1 . . . . Branch Access Points 1 | . . . 1 . . . Dispatch Records 1 | . . 1 . . . . Fabricator Hacks . | . . . . . . . Repair Station Hacks . | . . . . . . . Recycling Unit Hacks . | . . . . . . . Scanalyzer . | . . . . . . . Garrison Access Hacks . | . . . . . . . Unauthorized Hacks . | . . . . . . . Terminals . | . . . . . . . Fabricators . | . . . . . . . Repair Stations . | . . . . . . . Recycling Units . | . . . . . . . Scanalyzers . | . . . . . . . Garrison Access . | . . . . . . . Data Cores Recovered . | . . . . . . . Used . | . . . . . . . Hacking Detections 3 | . . 1 2 . . . Full Trace Events 2 | . . . 2 . . . Feedback Events . | . . . . . . . Feedback Blocked . | . . . . . . . Robot Schematics Acquired . | . . . . . . . Robots Built . | . . . . . . . Matter . | . . . . . . . Time . | . . . . . . . Total Robot Build Rating . | . . . . . . . Part Schematics Acquired . | . . . . . . . Parts Built . | . . . . . . . Matter . | . . . . . . . Time . | . . . . . . . Total Part Build Rating . | . . . . . . . Parts Repaired . | . . . . . . . Time . | . . . . . . . Parts Recycled . | . . . . . . . Recycled Matter . | . . . . . . . Retrieved Matter . | . . . . . . . Retrieved Components . | . . . . . . . Parts Scanalyzed . | . . . . . . . Part Schematics Acquired . | . . . . . . . Parts Damaged . | . . . . . . . Bothacking | -11 -10 -10 -9 -9 -7 -7 ------------ Run | Scr Mat Min Mat Min Zio Dee Used RIF Installer . | . . . . . . . Robots Hacked . | . . . . . . . Non-combat . | . . . . . . . Combat . | . . . . . . . Robot Hacks Applied . | . . . . . . . Relay Couplers Released . | . . . . . . . Robots Rewired . | . . . . . . . Allies Hacked . | . . . . . . . Hacks Repelled . | . . . . . . . Allies | -11 -10 -10 -9 -9 -7 -7 -------- Run | Scr Mat Min Mat Min Zio Dee Total Allies 4 | . . 2 . . 2 . Largest Group 2 | . . 2 2 . 2 2 Highest-Rated Group 188 | . . 45 45 . 188 188 Highest-Rated Ally 94 | . . 31 31 . 94 94 Total Orders . | . . . . . . . Ally Attacks 46 | . . 2 21 . . 23 Total Damage 1147 | . . 22 335 . . 790 Kills 14 | . . 1 6 . . 7 Allies Corrupted . | . . . . . . . Allies Melted . | . . . . . . . Intel | -11 -10 -10 -9 -9 -7 -7 ------- Run | Scr Mat Min Mat Min Zio Dee Robot Analysis Total . | . . . . . . . Derelict Logs Recovered 1 | . . . . . 1 . Drone Launches . | . . . . . . . Drone Recoveries . | . . . . . . . Exploration | -11 -10 -10 -9 -9 -7 -7 ------------- Run | Scr Mat Min Mat Min Zio Dee Turns Passed 3191 | 47 158 953 148 203 1046 636 Spaces Moved 2010 | 32 115 752 90 117 613 291 Core 13 | 4 . . . . . 9 Treads . | . . . . . . . Legs 1843 | 28 115 752 90 117 613 128 Wheels . | . . . . . . . Hover 154 | . . . . . . 154 Flight . | . . . . . . . Fastest Speed 50 | 50 120 120 120 150 150 50 Average Speed 148 | 112 120 120 148 150 167 194 Slowest Speed 236 | 120 120 120 150 150 180 236 Overloaded Moves . | . . . . . . . Propulsion Burnouts . | . . . . . . . Robots Hopped . | . . . . . . . Cave-ins Triggered . | . . . . . . . Exploration Rate (%) 46 | 2 26 100 17 36 75 68 Regions Visited 6 Branch Regions 4 Pre-discovered Areas 2 | . . . . . 2 . Known Exits Taken 5 | 1 1 1 1 . 1 . Unknown Exits Taken 1 | . . . . 1 . . Scrap Searched 3 | . . 1 . . 2 . Spaces Dug . | . . . . . . . Terrain Destroyed 35 | . 4 . . . . 31 Melee . | . . . . . . . Projectile . | . . . . . . . AOE 35 | . 4 . . . . 31 Terrain Rammed . | . . . . . . . Walls Destroyed . | . . . . . . . Machines Disabled . | . . . . . . . Actions | -11 -10 -10 -9 -9 -7 -7 --------- Run | Scr Mat Min Mat Min Zio Dee Total 2144 | 39 122 784 96 127 636 340 Wait 47 | 1 . 21 . . 9 16 Move 2004 | 31 114 751 89 116 612 291 Hop . | . . . . . . . Pick Up 11 | . 1 2 1 . 6 1 Fast Attach 15 | 7 1 . . 2 4 1 Attach 7 | . . . . . . 7 Detach 2 | . . . . . 1 1 Swap 1 | . . . 1 . . . Drop 7 | . . . . . 4 3 Fire 46 | . 6 9 4 8 . 19 Melee . | . . . . . . . Ram . | . . . . . . . Kick 3 | . . 1 1 1 . . Crush . | . . . . . . . Escape Stasis . | . . . . . . . Rewire 1 | . . . . . . 1 Trap . | . . . . . . . Miscellaneous . | . . . . . . . Route ------- -11/Scrapyard -10/Materials -10/Mines (discovered 2 exits: *Mat x2) -9/Materials (discovered 2 exits: *Min x2) -9/Mines (discovered 2 exits: *Mat / *Zio) -7/Zion -7/Deep Caves History --------- Turn | Location | Event 25 | -11/Scrapyard | Identified exit to Materials 25 | -11/Scrapyard | Discovered exit to Materials (range 16) 48 | -11/Scrapyard | Entered Materials 48 | -10/Materials | Evolved 1 slot: Utility x1 197 | -10/Materials | Identified exit to Mines 197 | -10/Materials | Discovered exit to Mines (range 7) 206 | -10/Materials | Entered Mines 310 | -10/Mines | Build established: Hacker-Mutant 462 | -10/Mines | Found a damaged Exp. Sensor Array with a note attached 464 | -10/Mines | Found Prototype Device 563 | -10/Mines | Identified exit to Materials 563 | -10/Mines | Discovered exit to Materials (range 6) 1063 | -10/Mines | Discovered exit to Materials (range 7) 1073 | -10/Mines | Received a Rocket Launcher from a helpful Derelict 1159 | -10/Mines | Entered Materials 1159 | -9/Materials | Accompanied by 2 allies 1159 | -9/Materials | Evolved 2 slots: Propulsion x1, Weapon x1 1164 | -9/Materials | Led the pair of lost Derelicts to an unsafe place 1267 | -9/Materials | Identified exit to Mines 1307 | -9/Materials | Entered Mines 1326 | -9/Mines | Met a Derelict bent on vengeance 1504 | -9/Mines | Identified exit to Materials 1504 | -9/Mines | Discovered exit to Materials (range 4) 1505 | -9/Mines | A Derelict revealed a hidden shortcut to a safe place 1510 | -9/Mines | Entered Zion 1549 | -7/Zion | Given A8's code to call for help 1701 | -7/Zion | Acquired unknown access codes intercepted by a Zionite 1844 | -7/Zion | Learned Factory garrison access intel 1914 | -7/Zion | Opened final containment barrier to the Deep Caves 1919 | -7/Zion | Enhanced Grunt warped into view, answering call for help 1921 | -7/Zion | Enhanced Grunt warped into view, answering call for help 2009 | -7/Zion | Build established: Hacker-Tank 2067 | -7/Zion | Received a hallucinogenic algorithm 2153 | -7/Zion | Found Prototype Launcher 2279 | -7/Zion | Learned Factory repair station intel 2471 | -7/Zion | Build established: Hacker-Mutant 2540 | -7/Zion | Identified exit to Deep Caves 2540 | -7/Zion | Discovered exit to Deep Caves (range 5) 2543 | -7/Zion | Saw the warning signs outside the Deep Caves entrance 2556 | -7/Zion | Entered Deep Caves 2556 | -7/Deep Caves | Accompanied by 2 allies 2661 | -7/Deep Caves | Attacked by Z-Imprinter 2662 | -7/Deep Caves | Z-Facility disabled 2685 | -7/Deep Caves | Allies destroyed Z-Imprinter 2775 | -7/Deep Caves | Identified Exp. Sensor Array 2802 | -7/Deep Caves | Lost 4 parts (1p2n1u) 2919 | -7/Deep Caves | Identified Gui. Missile Launcher 3158 | -7/Deep Caves | Triggered Deep Caves wall 3158 | -7/Deep Caves | Spotted AS-50203 3163 | -7/Deep Caves | Core integrity fell below 50% 3176 | -7/Deep Caves | Destroyed AS-06799 3178 | -7/Deep Caves | Destroyed AS-50203 3180 | -7/Deep Caves | Exposed GOLEM chamber 3184 | -7/Deep Caves | Spotted as-22367 3190 | -7/Deep Caves | Core integrity fell below 20% 3192 | -7/Deep Caves | Destroyed by as-22367 with Assembled Focal Cannon Last Messages --------------- 03168_ as-91030 destroyed. 03168_ 8W-Z23(l) destroyed. 03170_ as-81383 destroyed. 03170_ as-24453 destroyed. 03170_ as-81881 destroyed. 03170_ as-83121 destroyed. 03172_ Lgt. Antimatter Reactor destroyed. 03173_ as-35209 destroyed. 03178_ AS-50203 destroyed. 03180_ Wall Chamber breached. 03180_ A GOLEM Unit tumbles out of the Wall Chamber. 03180_ as-23933 destroyed. 03183_ Dropped Lrg. Storage Unit. 03184_ Dropped Missile Launcher. 03186_ as-22367: "DSI9AT1D G8OHIBQ29FWG 26R186 QD12WHW8W33 TDK1 81FTS" 03189_ Prc. Grenade Launcher destroyed. 03190_ GOLEM Unit springs to life. 03191_ as-88987 GOLEM Unit beginning Prototype Leg integration. 03191_ Attempting to rewire P6-R3C(b). 03191_ P6-R3C(b) is broken beyond repair. Map ----- +----------------------------------------------------+ | | | | | | | | | | | | | | | ??????????????????????????????????????? | | ??????????????????????????????????????? | | ??????????????????????????????????????? | | ???????????? ?????????????????????? | | ?????????? ##???????????????????? | | ????????? # #??????????????????? | | ?????????" # #?#????????????????? | | ????????? # #????????????????? | | ?????????? # #????????????????? | | ?????????? #??#?????????????? | | ????????""" #? #?????????????? | | ????????"G ## #?????????????? | | ????????" # ####??????????? | | ????????" | ??????????# | | ????????# #??????###?## | | ?????????" #??????## ## | | ?????????" ###?????## | | ?????????" #????## | | ?????????" b@ #?###???# | | ????????"" #?# #???# | | ??????### = ### ##### | | ??""""" # ### | | ??"!!! ] ##???####### | | ??"!%! ! ###???????## | | ??"*!! #????????? | | ??" ! ###????????? | | ??" **! ##??????#### | | ??"% % #?????## | | ??"! * #?????# | | ??""""" #?????# | | ??????### ! * g #????## | | ???????"!G #???## | | ???????""" * #???# | | ?????????" * / / #??## | | ?????????" * ##?# | | ?????????" *! !/ #?# | | ????????? ### | | ????????? ! ## | | ???????????? ! ## | | ???????????? ! ! | | ???????????? | | ????????????? ! | | ????????????? # | +----------------------------------------------------+ Best States ------------- Heat Dissipation 42 Energy Generation 21 Energy Capacity 170 Matter Stores 300 Matter Capacity 300 Sight Range 16 Robot Scan Range 30 Terrain Scan Density 10 Armor Coverage 150 Resistance: KI 55 Resistance: TH 35 Resistance: EX 35 Resistance: EM 35 Resistance: I 35 Resistance: S 35 Resistance: P 35 Power Shielding 33 Evasion (%) 50 Offensive Hacking 20 Item Schematics ----------------- None Robot Schematics ------------------ None Fabricated ------------ Nothing Alien Tech Used ----------------- None Achievements -------------- None Challenges ------------ None Game ------ Seed TrackerCombatReplicator Manual? 0 Play Time 00:14:57 Cumulative 387.9 hours Start 2020.10.30 @ 21:57:43 End 2020.10.30 @ 22:14:05 Sessions 1 Manual Loads 0 Difficulty Explorer Special Mode Halloween2020/ForbiddenLore Game No. 253 Rogue 248 Adventurer 0 Explorer 5 Win Type - Total 38 Types 29/2/4/2/1/0/0/0/0 Lore% 88 Gallery% 91 Achievement% 87 Wizard Run 0 Options --------- ASCII 0 Keyboard 0 Movement Numpad Keybinds 0 Fullscreen 1 Font 18/X11Bold Map View 76x50 Tactical HUD 1 Map Filters NONE Filters NONE Steam 1 RUN: 3dd3b32d-0e85-4ea9-9643-07ce8dd65e92